bitfinex-derivatives/quotes_SOLF0:USTF0_20250829
["timestamp","ask_amount","ask_price","bid_price","bid_amount"]
[1756489458638,4.45046902,203.63,203.58,7.56463649]
[1756489458838,4.45046902,203.63,203.59,7.4]
[1756489459040,4.45046902,203.63,203.58,7.56463649]
[1756489459542,4.45046902,203.63,203.59,7.4]
[1756489459740,4.45046902,203.63,203.58,7.56463649]
[1756489460539,0.03106902,203.63,203.58,7.56463649]
[1756489461234,0.03106902,203.63,203.59,7.4]
[1756489461435,11.7283,203.68,203.62,7.4]
[1756489461745,7.31,203.73,203.65,7.4]
[1756489462541,59.84,203.82,203.67,7.56463649]
[1756489462741,7.31,203.81,203.67,7.56463649]
[1756489463243,7.31,203.81,203.68,7.4]
[1756489463442,7.31,203.81,203.72,0.03394699]
[1756489465546,7.31,203.73,203.72,0.03394699]
[1756489466645,4.4169,203.74,203.72,0.03394699]
[1756489470347,4.4169,203.74,203.72,7.43394699]
[1756489470851,4.4169,203.74,203.72,0.03394699]
[1756489471853,11.7269,203.74,203.72,0.03394699]
[1756489472054,7.31,203.73,203.72,0.03394699]
[1756489472449,4.4169,203.74,203.72,12.15479253]
[1756489472647,4.4169,203.74,203.72,4.75479253]
[1756489473859,4.4169,203.74,203.73,7.4]
[1756489474254,7.31,203.79,203.73,7.4]
[1756489474457,7.31,203.79,203.75,4.72084554]
[1756489474758,7.31,203.88,203.75,12.12084554]
[1756489474954,4.72084554,203.89,203.75,12.12084554]
[1756489475560,7.31,203.88,203.8,0.03592728]
[1756489476262,11.7253,203.81,203.8,0.03592728]
[1756489477264,11.7253,203.81,203.8,2.728e-05]
[1756489477662,4.4168,203.75,203.73,4.72084554]
[1756489477853,4.4168,203.75,203.7,50.02]
[1756489478057,4.4168,203.75,203.73,4.72084554]
[1756489478259,4.4162,203.77,203.73,4.72084554]
[1756489478556,7.39,203.78,203.73,12.20084554]
[1756489478761,4.4168,203.75,203.73,4.72084554]
[1756489479763,7.42661621,203.77,203.69,12.20084554]
[1756489480555,7.42661621,203.77,203.72,4.72084554]
[1756489480866,0.03661621,203.77,203.72,4.72084554]
[1756489481060,0.03661621,203.77,203.73,7.48]
[1756489481459,0.03661621,203.77,203.74,4.72084554]
[1756489481657,4.4165,203.76,203.74,4.72084554]
[1756489482057,11.8065,203.76,203.74,4.72084554]
[1756489483260,11.8065,203.76,203.68,127.64]
[1756489483261,7.39,203.76,203.68,127.64]
[1756489483466,7.39,203.76,203.71,12.20084554]
[1756489483666,7.39,203.76,203.71,4.72084554]
[1756489483865,7.39,203.76,203.72,7.48]
[1756489484066,4.417,203.74,203.72,7.48]
[1756489486269,4.4173,203.72,203.71,4.72084554]
[1756489486766,0.03661621,203.77,203.71,4.72084554]
[1756489487161,4.417,203.74,203.71,12.20084554]
[1756489488861,4.4165,203.76,203.72,7.48]
[1756489489066,4.4165,203.76,203.74,4.72084554]
[1756489489268,4.4165,203.76,203.74,12.20084554]
[1756489490166,4.4165,203.76,203.74,4.72084554]
[1756489491067,4.4165,203.76,203.74,12.20084554]
[1756489491766,4.4165,203.76,203.74,4.72084554]
[1756489492768,0.03661621,203.77,203.75,7.48]
[1756489493376,0.03661621,203.77,203.74,4.72084554]
[1756489493675,0.03661621,203.77,203.74,12.20084554]
[1756489494579,0.03661621,203.77,203.75,7.48]
[1756489495272,4.45301621,203.77,203.75,7.48]
[1756489498677,0.03661621,203.77,203.74,4.72084554]
[1756489499279,0.03661621,203.77,203.75,7.48]
[1756489499472,0.03661621,203.77,203.74,4.72084554]
[1756489499679,0.03661621,203.77,203.75,7.48]
[1756489500069,0.03661621,203.77,203.74,4.72084554]
[1756489500278,0.03661621,203.77,203.75,7.48]
[1756489500481,7.39,203.88,203.75,7.98]
[1756489500676,7.39,203.88,203.81,4.72084554]
[1756489501678,4.4151,203.83,203.81,4.72084554]
[1756489503377,11.8051,203.83,203.81,4.72084554]
[1756489503578,11.8058,203.8,203.78,4.72084554]
[1756489504782,7.39,203.79,203.71,8.82965624]
[1756489504972,7.39,203.79,203.71,4.72084554]
[1756489505576,4.72084554,203.88,203.75,7.48]
[1756489505780,4.72084554,203.88,203.77,4.72084554]
[1756489505781,7.39,203.87,203.77,4.72084554]
[1756489506087,4.4153,203.82,203.8,4.72084554]
[1756489506490,7.39,203.81,203.77,4.72084554]
[1756489506684,7.49,203.87,203.77,4.72084554]
[1756489506884,4.416,203.79,203.77,4.72084554]
[1756489507087,7.49,203.78,203.74,4.72084554]
[1756489507283,7.49,203.87,203.74,4.72084554]
[1756489507583,4.4159,203.79,203.77,4.72084554]
[1756489507980,7.49,203.83,203.77,4.72084554]
[1756489508186,4.4155,203.81,203.77,4.72084554]
[1756489508387,7.49,203.9,203.8,4.72084554]
[1756489509590,7.49,203.9,203.83,4.72084554]
[1756489509893,7.49,203.9,203.82,4.72084554]
[1756489510192,7.49,203.9,203.84,0.03195197]
[1756489510391,11.9044,203.86,203.84,0.03195197]
[1756489510690,7.49,203.85,203.84,0.03195197]
[1756489511490,7.49,203.85,203.84,5.197e-05]
[1756489514093,4.4144,203.86,203.84,5.197e-05]
[1756489514295,4.4144,203.86,203.84,12.52089751]
[1756489515097,4.4144,203.86,203.84,4.72089751]
[1756489515293,11.9044,203.86,203.84,4.72089751]
[1756489515591,4.4144,203.86,203.84,4.72089751]
[1756489518395,4.4144,203.86,203.84,12.52089751]
[1756489518697,0.03410883,203.87,203.84,12.52089751]
[1756489519498,0.03410883,203.87,203.84,4.72089751]
[1756489520505,0.03410883,203.87,203.84,12.52089751]
[1756489522796,4.4145,203.86,203.84,12.52089751]
[1756489524203,0.03410883,203.87,203.84,12.52089751]
[1756489524505,0.03410883,203.87,203.85,4.72084554]
[1756489524701,0.03410883,203.87,203.85,12.52084554]
[1756489525402,4.44840883,203.87,203.85,12.52084554]
[1756489525701,4.44840883,203.87,203.85,4.72084554]
[1756489526002,0.03410883,203.87,203.86,7.8]
[1756489526402,7.49,203.98,203.86,8.3]
[1756489526705,4.4126,203.95,203.91,7.8]
[1756489527405,4.4126,203.95,203.9,4.72084554]
[1756489527597,4.4126,203.95,203.93,4.72084554]
[1756489527800,4.413,203.93,203.91,0.03203086]
[1756489527997,4.413,203.93,203.91,4.7528764]
[1756489528196,4.413,203.93,203.91,12.5528764]
[1756489528401,4.413,203.93,203.92,7.8]
[1756489528904,7.49,203.98,203.91,12.5528764]
[1756489529607,4.4128,203.94,203.91,4.7528764]
[1756489529907,4.4128,203.94,203.92,7.8]
[1756489530604,4.4123,203.96,203.91,4.7528764]
[1756489530796,7.49,204.03,203.95,4.72084554]
[1756489531711,7.49,204.03,203.98,12.52084554]
[1756489532013,7.49,204.19,204.02,7.8]
[1756489532209,7.49,204.16,204.05,4.72084554]
[1756489532411,4.4093,204.1,204.05,4.72084554]
[1756489532608,7.49,204.17,204.05,4.72084554]
[1756489533408,7.49,204.17,204.09,7.518e-05]
[1756489533609,7.52183549,204.13,204.09,4.72092072]
[1756489533809,7.49,204.12,204.09,4.72092072]
[1756489534112,0.03183549,204.13,204.09,4.72092072]
[1756489534309,12.21084554,204.12,204.09,7.518e-05]
[1756489534903,4.8891,204.11,204.09,7.518e-05]
[1756489535210,4.8891,204.11,203.95,4.72084554]
[1756489535211,7.49,204.1,203.95,4.72084554]
[1756489535504,7.49,204.05,203.95,4.72084554]
[1756489536102,4.4113,204.01,203.93,117.14658899]
[1756489536307,7.49,204.05,203.95,4.72084554]
[1756489536504,4.72084554,204.04,203.93,117.14658899]
[1756489536808,7.74,204.01,203.93,117.14658899]
[1756489537513,4.4116,204.0,203.94,4.72084554]
[1756489537810,0.03216479,204.02,203.98,7.67]
[1756489538208,0.03216479,204.02,203.94,62.0]
[1756489538513,0.03216479,204.02,203.98,4.72084554]
[1756489538713,0.03216479,204.02,203.99,7.67]
[1756489538912,0.03216479,204.02,203.98,4.72084554]
[1756489539213,0.03216479,204.02,203.99,7.67]
[1756489539407,0.03216479,204.02,203.94,7.67]
[1756489539805,4.44306479,204.02,203.96,4.72084554]
[1756489540108,0.03216479,204.02,203.99,4.72084554]
[1756489540314,0.03216479,204.02,204.01,4.72084554]
[1756489540514,0.03216479,204.02,203.98,4.72084554]
[1756489540716,7.77216479,204.02,203.97,4.72084554]
[1756489540916,7.74,204.01,203.97,4.72084554]
[1756489541117,7.74,204.01,203.94,12.39084554]
[1756489541616,0.03216479,204.02,203.98,7.67]
[1756489541812,0.03216479,204.02,203.97,4.72084554]
[1756489542315,0.03216479,204.02,203.98,7.67]
[1756489542719,0.03216479,204.02,203.97,4.72084554]
[1756489543111,0.03216479,204.02,203.98,7.67]
[1756489543313,0.03216479,204.02,203.97,4.72084554]
[1756489543510,0.03216479,204.02,204.01,7.67]
[1756489543912,7.74,204.11,204.01,8.17]
[1756489544120,7.74,204.11,204.04,4.72084554]
[1756489545113,7.74,204.11,204.05,0.03500053]
[1756489545711,7.74,204.16,204.06,7.67]
[1756489546017,7.74,204.16,204.07,4.72084554]
[1756489546608,4.4092,204.11,204.07,4.72084554]
[1756489546815,7.74,204.16,204.1,4.72084554]
[1756489547217,4.4082,204.15,204.1,4.72084554]
[1756489547416,4.4082,204.15,204.11,0.03678797]
[1756489547818,7.74,204.16,204.11,7.70678797]
[1756489548520,7.74,204.22,204.13,4.72084554]
[1756489548716,7.74,204.22,204.17,12.39084554]
[1756489548916,4.4064,204.24,204.17,4.72084554]
[1756489549222,7.74,204.28,204.17,4.72084554]
[1756489549414,4.4065,204.23,204.17,4.72084554]
[1756489549609,7.74,204.28,204.2,4.72084554]
[1756489549913,4.4057,204.27,204.18,7.70672624]
[1756489550115,7.74,204.28,204.23,4.72084554]
[1756489550316,7.74,204.36,204.26,4.72084554]
[1756489550515,7.74,204.36,204.24,4.72084554]
[1756489550819,7.74,204.36,204.29,0.03263299]
[1756489551023,7.74,204.16,204.05,4.08744418]
[1756489551216,12.46084554,204.16,204.04,12.39084554]
[1756489551417,7.74,204.16,204.07,4.72084554]
[1756489552121,4.4091,204.11,204.07,4.72084554]
[1756489553416,4.4091,204.11,204.04,7.67]
[1756489553622,4.4097,204.08,204.02,7.52775678]
[1756489553921,7.74,204.16,204.05,7.52775678]
[1756489554115,0.03300529,204.07,204.06,7.67]
[1756489554323,7.74,204.16,204.02,7.52775678]
[1756489554618,0.03282471,204.09,204.02,7.52775678]
[1756489556717,0.03282471,204.09,203.99,7.52775678]
[1756489556718,7.77282471,204.09,203.99,7.52775678]
[1756489557123,4.4101,204.06,203.99,7.52775678]
[1756489557527,4.44462541,204.06,203.99,7.52775678]
[1756489557925,4.4105,204.05,203.99,7.52775678]
[1756489558225,7.74,204.05,203.95,7.52775678]
[1756489558919,4.4114,204.0,203.95,7.52775678]
[1756489559124,4.4114,204.0,203.95,15.19775678]
[1756489559514,0.03455644,204.02,203.95,15.19775678]
[1756489560121,4.44555644,204.02,203.95,15.19775678]
[1756489560625,0.03455644,204.02,203.95,15.19775678]
[1756489560821,0.03455644,204.02,203.99,7.67]
[1756489561026,7.74,204.11,204.01,15.19775678]
[1756489561228,7.74,204.11,204.04,7.52775678]
[1756489561421,12.1491,204.11,204.04,7.52775678]
[1756489561621,7.74,204.19,204.04,7.52775678]
[1756489561822,7.74,204.19,204.04,15.19775678]
[1756489562036,4.4088,204.12,204.04,15.19775678]
[1756489562321,4.4088,204.12,204.09,0.03445601]
[1756489563221,4.4092,204.11,204.09,0.03445601]
[1756489563418,7.74,204.1,204.09,0.03445601]
[1756489563622,7.74,204.1,204.09,5.601e-05]
[1756489564820,8.22,204.1,204.09,5.601e-05]
[1756489565222,8.22,204.1,204.01,7.52775678]
[1756489565425,7.74,204.1,204.01,7.52775678]
[1756489565622,7.74,204.1,203.99,58.29]
[1756489565825,7.74,204.06,203.95,62.0]
[1756489566123,7.74,204.06,203.97,7.52775678]
[1756489566926,7.74,204.06,203.94,240.18299097]
[1756489566927,0.03335929,204.04,203.94,7.67]
[1756489567127,0.03335929,204.04,203.94,15.19775678]
[1756489568131,4.4116,204.0,203.94,15.19775678]
[1756489568526,7.18,204.03,203.94,15.19775678]
[1756489568828,0.03450501,203.99,203.94,15.19775678]
[1756489569029,4.44630501,203.99,203.94,15.19775678]
[1756489569222,4.44630501,203.99,203.95,7.27]
[1756489569828,0.03450501,203.99,203.95,7.27]
[1756489570029,0.03450501,203.99,203.97,7.52775678]
[1756489570230,7.18,204.08,203.98,7.27]
[1756489570827,4.4107,204.03,203.97,7.52775678]
[1756489571031,7.18,204.08,203.96,7.27]
[1756489571235,7.18,204.07,203.93,329.28]
[1756489571734,7.18,204.07,204.0,0.03416443]
[1756489572138,11.5912,204.01,204.0,6.443e-05]
[1756489572428,7.18,204.01,203.87,23.48520096]
[1756489572634,7.18,204.01,203.91,7.27]
[1756489573734,4.4126,203.95,203.91,7.27]
[1756489577135,7.18,203.97,203.88,7.27]
[1756489577729,7.18,203.97,203.87,4.6]
[1756489577934,0.03450779,203.95,203.87,19.39775678]
[1756489578536,4.4133,203.92,203.88,7.27]
[1756489579132,0.03450779,203.95,203.87,12.12775678]
[1756489579340,7.21450779,203.95,203.87,4.6]
[1756489579937,4.4139,203.89,203.87,4.6]
[1756489580135,7.18,203.94,203.81,62.0]
[1756489580435,5.39852887,204.07,203.79,7.27]
[1756489580436,7.18,203.88,203.79,7.27]
[1756489580741,7.18,203.88,203.76,116.11785456]
[1756489581239,0.03692049,203.84,203.76,116.11785456]
[1756489581735,4.4153,203.83,203.76,116.11785456]
[1756489581937,0.03692049,203.84,203.76,116.11785456]
[1756489582138,7.21692049,203.84,203.76,108.59009778]
[1756489582537,7.21692049,203.84,203.71,7.52775678]
[1756489582736,7.21692049,203.84,203.77,7.52775678]
[1756489583040,7.18,203.84,203.77,7.52775678]
[1756489583340,0.03676941,203.83,203.77,7.52775678]
[1756489583539,4.4158,203.8,203.77,7.52775678]
[1756489583938,4.4158,203.8,203.74,7.27]
[1756489584140,4.4161,203.78,203.77,7.52775678]
[1756489584439,0.03676941,203.83,203.77,7.52775678]
[1756489585035,0.03676941,203.83,203.74,7.27]
[1756489585235,7.18,203.82,203.73,7.52775678]
[1756489586035,0.03456465,203.8,203.73,7.52775678]
[1756489586542,0.03456465,203.8,203.7,14.79775678]
[1756489586743,7.18,203.79,203.7,14.79775678]
[1756489589242,4.4162,203.78,203.74,7.27]
[1756489589838,4.45127723,203.78,203.74,7.27]
[1756489590042,0.03507723,203.78,203.7,14.79775678]
[1756489590744,0.03507723,203.78,203.74,7.27]
[1756489591140,0.03507723,203.78,203.73,7.52775678]
[1756489591338,0.03507723,203.78,203.74,7.27]
[1756489591542,0.03507723,203.78,203.77,7.27]
[1756489592842,0.03507723,203.78,203.75,7.27]
[1756489593948,0.03507723,203.78,203.74,7.52775678]
[1756489594538,0.03507723,203.78,203.74,69.52775678]
[1756489594848,0.03507723,203.78,203.74,7.52775678]
[1756489595048,0.03507723,203.78,203.71,112.12775678]
[1756489595249,4.4165,203.77,203.71,119.39775678]
[1756489595646,7.21507723,203.78,203.68,7.52775678]
[1756489595849,7.21507723,203.78,203.71,7.52775678]
[1756489596043,7.18,203.82,203.71,7.52775678]
[1756489596444,0.03596988,203.77,203.71,7.52775678]
[1756489596638,4.45256988,203.77,203.71,7.52775678]
[1756489596844,0.03596988,203.77,203.72,7.69]
[1756489597051,0.03596988,203.77,203.74,7.52775678]
[1756489597244,0.03596988,203.77,203.75,7.69]
[1756489597445,0.03596988,203.77,203.71,7.52775678]
[1756489597751,0.03596988,203.77,203.66,7.52775678]
[1756489597944,7.35,203.78,203.67,7.69]
[1756489598144,0.03231491,203.76,203.66,33.62775678]
[1756489598347,0.03231491,203.76,203.66,7.52775678]
[1756489598548,4.4176,203.72,203.66,7.52775678]
[1756489599044,4.4176,203.72,203.65,7.69]
[1756489599244,4.45175837,203.71,203.65,15.21775678]
[1756489599641,0.03395837,203.71,203.65,7.69]
[1756489599848,4.4187,203.67,203.65,7.69]
[1756489600042,0.03395837,203.71,203.64,7.52775678]
[1756489600247,0.03395837,203.71,203.65,7.69]
[1756489600445,4.4176,203.72,203.65,7.69]
[1756489600753,0.03216958,203.7,203.65,62.0]
[1756489601054,0.03216958,203.7,203.66,7.69]
[1756489601651,0.03216958,203.7,203.62,7.69]
[1756489601847,0.03216958,203.7,203.64,7.52775678]
[1756489602448,0.03216958,203.7,203.65,7.69]
[1756489602948,0.03216958,203.7,203.64,15.21775678]
[1756489603153,0.03216958,203.7,203.65,7.69]
[1756489603154,4.4185,203.68,203.65,7.69]
[1756489603347,4.4185,203.68,203.64,7.52775678]
[1756489603550,0.03216958,203.7,203.65,7.69]
[1756489603750,0.03216958,203.7,203.64,15.21775678]
[1756489605054,4.4182,203.69,203.64,7.52775678]
[1756489605357,4.4182,203.69,203.52,11.59399469]
[1756489605358,7.35,203.64,203.49,7.69]
[1756489605551,7.35,203.64,203.52,7.69]
[1756489605552,4.4202,203.59,203.52,7.69]
[1756489605756,19.39,203.64,203.52,7.69]
[1756489606052,0.03746192,203.58,203.52,7.69]
[1756489606259,4.4206,203.57,203.52,7.69]
[1756489606852,4.4206,203.57,203.46,7.69]
[1756489607755,0.03155114,203.54,203.46,7.69]
[1756489608154,0.03155114,203.54,203.47,62.0]
[1756489608657,0.03155114,203.54,203.48,7.69]
[1756489610057,0.03155114,203.54,203.43,7.69]
[1756489610457,0.03155114,203.54,203.46,7.69]
[1756489613462,7.38155114,203.54,203.46,7.69]
[1756489617968,0.03155114,203.54,203.46,7.69]
[1756489619470,0.03155114,203.54,203.48,7.69]
[1756489620358,0.03155114,203.54,203.42,13.16]
[1756489620359,7.35,203.64,203.54,7.69]
[1756489620572,4.4189,203.66,203.56,7.52775678]
[1756489620867,7.35,203.68,203.57,7.69]
[1756489621069,7.35,203.68,203.58,62.0]
[1756489621563,7.35,203.68,203.61,0.03237885]
[1756489622066,0.85488982,203.7,203.61,0.03237885]
[1756489622271,14.87775678,203.69,203.61,0.03237885]
[1756489622473,4.4196,203.63,203.61,0.03237885]
[1756489622667,7.35,203.62,203.5,7.52775678]
[1756489623269,7.35,203.62,203.51,7.69]
[1756489623473,7.35,203.62,203.54,7.69]
[1756489623875,0.03126418,203.6,203.56,7.52775678]
[1756489624173,0.03126418,203.6,203.57,7.69]
[1756489624374,7.35,203.66,203.57,7.69]
[1756489624574,0.03544052,203.6,203.57,7.69]
[1756489624872,0.03544052,203.6,203.45,17.18623791]
[1756489624873,0.03544052,203.6,203.5,7.52775678]
[1756489625270,7.35,203.63,203.5,7.52775678]
[1756489625574,0.03138148,203.57,203.47,7.52775678]
[1756489626373,0.03138148,203.57,203.5,0.03353865]
[1756489626874,12.2715,203.54,203.5,0.03353865]
[1756489627369,4.4217,203.53,203.5,0.03353865]
[1756489627674,7.85,203.56,203.5,0.03353865]
[1756489628076,0.03138148,203.57,203.5,15.49129543]
[1756489628274,0.03138148,203.57,203.54,7.93]
[1756489629078,0.03138148,203.57,203.51,62.0]
[1756489629272,0.03138148,203.57,203.5,15.49129543]
[1756489629569,7.88138148,203.57,203.5,0.03353865]
[1756489629971,4.4217,203.53,203.5,0.03353865]
[1756489630175,7.88138148,203.57,203.5,0.03353865]
[1756489631079,4.4217,203.53,203.5,0.03353865]
[1756489632472,4.4211,203.56,203.5,0.03353865]
[1756489632677,7.88138148,203.57,203.5,7.56129543]
[1756489632878,7.88138148,203.57,203.51,7.52775678]
[1756489633379,7.88138148,203.57,203.5,0.03353865]
[1756489633570,4.4219,203.52,203.5,0.03353865]
[1756489633774,7.85,203.53,203.37,15.45775678]
[1756489633973,7.85,203.53,203.36,109.95007268]
[1756489633974,7.85,203.53,203.4,15.45775678]
[1756489634780,4.4228,203.48,203.4,15.45775678]
[1756489635576,0.03216886,203.49,203.4,15.45775678]
[1756489635779,0.03216886,203.49,203.44,7.93]
[1756489636175,0.03216886,203.49,203.43,7.52775678]
[1756489636377,0.03216886,203.49,203.43,15.45775678]
[1756489639786,0.03216886,203.49,203.4,26.0]
[1756489640080,4.45466886,203.49,203.4,26.0]
[1756489641679,0.03216886,203.49,203.4,26.0]
[1756489642183,7.85,203.45,203.4,8.73689371]
[1756489642390,7.52775678,203.46,203.4,8.73689371]
[1756489642580,0.5,203.45,203.4,3.02699371]
[1756489642885,0.5,203.45,203.29,7.52775678]
[1756489642886,7.85,203.44,203.29,7.52775678]
[1756489643581,0.03648199,203.39,203.29,7.52775678]
[1756489644975,0.03648199,203.39,203.3,7.93]
[1756489645181,0.03648199,203.39,203.32,7.52775678]
[1756489646584,0.03648199,203.39,203.32,11.95365678]
[1756489647989,0.03648199,203.39,203.34,4.4256]
[1756489648382,0.03648199,203.39,203.35,7.93]
[1756489648688,0.03648199,203.39,203.32,7.52775678]
[1756489648889,0.03648199,203.39,203.31,62.0]
[1756489649389,0.03648199,203.39,203.3,7.93]
[1756489649984,0.03648199,203.39,203.32,11.95385678]
[1756489650184,0.03648199,203.39,203.33,7.93]
[1756489650586,0.03648199,203.39,203.35,7.52775678]
[1756489650788,0.03648199,203.39,203.36,7.93]
[1756489652691,0.03648199,203.39,203.35,7.52775678]
[1756489653088,0.03648199,203.39,203.36,7.93]
[1756489653594,0.03648199,203.39,203.35,7.52775678]
[1756489653790,0.03648199,203.39,203.35,11.95305678]
[1756489654097,0.03648199,203.39,203.33,7.52775678]
[1756489654994,0.03648199,203.39,203.3,15.45775678]
[1756489657293,0.03648199,203.39,203.3,7.93]
[1756489657495,7.81,203.38,203.25,7.52775678]
[1756489658194,0.03662488,203.34,203.25,7.52775678]
[1756489658393,0.03662488,203.34,203.28,14.77775678]
[1756489658996,0.03662488,203.34,203.28,19.20455678]
[1756489659597,0.03662488,203.34,203.29,4.4265]
[1756489659797,0.03662488,203.34,203.28,7.52775678]
[1756489660002,0.03662488,203.34,203.25,14.77775678]
[1756489660201,0.03662488,203.34,203.28,7.52775678]
[1756489660505,0.03662488,203.34,203.28,69.52775678]
[1756489660699,0.03662488,203.34,203.3,7.25]
[1756489661094,0.03662488,203.34,203.29,4.4266]
[1756489661897,0.03662488,203.34,203.28,69.52775678]
[1756489662093,0.03662488,203.34,203.28,7.25]
[1756489663803,0.03662488,203.34,203.28,14.77775678]
[1756489664691,0.03662488,203.34,203.28,19.20455678]
[1756489664898,0.03662488,203.34,203.28,14.77775678]
[1756489666804,0.03662488,203.34,203.28,19.20455678]
[1756489666996,0.03662488,203.34,203.28,14.77775678]
[1756489667397,0.03662488,203.34,203.31,4.73933597]
[1756489667602,0.03662488,203.34,203.31,11.98933597]
[1756489672810,0.03662488,203.34,203.31,4.73933597]
[1756489673810,0.03662488,203.34,203.32,7.25]
[1756489674011,0.03662488,203.34,203.31,4.73933597]
[1756489674309,0.03662488,203.34,203.31,9.16543597]
[1756489674511,0.03662488,203.34,203.32,7.25]
[1756489674702,0.03662488,203.34,203.31,9.16543597]
[1756489674903,0.03662488,203.34,203.32,7.25]
[1756489675399,7.81,203.42,203.33,7.25]
[1756489675600,7.81,203.42,203.36,4.73933597]
[1756489676614,7.81,203.44,203.33,11.98933597]
[1756489676915,7.81,203.4,203.33,11.98933597]
[1756489679410,7.81,203.4,203.33,7.25]
[1756489680715,7.81,203.4,203.33,11.98933597]
[1756489681214,7.81,203.4,203.33,7.25]
[1756489681416,7.81,203.4,203.3,4.73933597]
[1756489681715,12.54933597,203.4,203.29,7.25]
[1756489682213,7.81,203.38,203.29,7.25]
[1756489682413,0.03294151,203.37,203.29,7.25]
[1756489684511,0.03294151,203.37,203.33,4.73933597]
[1756489684814,0.03294151,203.37,203.34,7.25]
[1756489685016,0.03294151,203.37,203.33,4.73933597]
[1756489685418,0.03294151,203.37,203.36,11.98933597]
[1756489686215,0.03294151,203.37,203.36,16.05557388]
[1756489686811,7.72,203.52,203.37,7.5]
[1756489687016,3.53994686,203.51,203.4,4.73933597]
[1756489687217,11.25994686,203.5,203.4,4.73933597]
[1756489687412,7.72,203.48,203.4,4.73933597]
[1756489687618,3.53994686,203.47,203.4,4.73933597]
[1756489687812,4.73933597,203.43,203.35,4.13101136]
[1756489688019,11.2581119,203.42,203.33,4.13101136]
[1756489688224,7.72,203.42,203.32,4.13101136]
[1756489688523,7.72,203.42,203.35,0.03540751]
[1756489691518,7.72,203.4,203.35,0.03540751]
[1756489691925,7.72,203.4,203.29,11.63101136]
[1756489692124,4.73933597,203.41,203.29,11.63101136]
[1756489692327,38.15938496,203.45,203.35,0.03287358]
[1756489692529,7.72,203.36,203.35,0.03287358]
[1756489692726,7.72,203.36,203.28,4.13101136]
[1756489693125,7.72,203.36,203.33,0.03681984]
[1756489693323,4.73933597,203.37,203.33,0.03681984]
[1756489693832,7.72,203.36,203.33,0.03681984]
[1756489694429,12.45933597,203.34,203.33,0.03681984]
[1756489694630,12.45933597,203.34,203.23,4.13101136]
[1756489695228,4.73933597,203.33,203.23,4.13101136]
[1756489695533,4.73933597,203.3,203.23,4.13101136]
[1756489695734,7.72,203.29,203.22,4.13101136]
[1756489695933,7.75703515,203.29,203.21,11.63101136]
[1756489697028,7.75703515,203.29,203.21,4.13101136]
[1756489697238,7.75703515,203.29,203.2,4.13101136]
[1756489698836,0.03703515,203.29,203.21,11.63101136]
[1756489699236,7.72,203.32,203.21,11.63101136]
[1756489699531,0.03597977,203.27,203.21,11.63101136]
[1756489699741,7.75597977,203.27,203.2,4.13101136]
[1756489700033,7.72,203.26,203.17,4.13101136]
[1756489700335,7.72,203.26,203.16,4.13101136]
[1756489700531,7.72,203.26,203.17,7.5]
[1756489701133,0.03355675,203.24,203.17,7.5]
[1756489701334,7.72,203.23,203.16,4.13101136]
[1756489701532,7.72,203.23,203.13,11.63101136]
[1756489702234,7.72,203.23,203.13,7.5]
[1756489703535,0.03355675,203.24,203.13,7.59355373]
[1756489703739,0.03355675,203.24,203.18,7.5]
[1756489704127,7.72,203.28,203.18,7.5]
[1756489704633,0.03277821,203.23,203.18,7.5]
[1756489704833,0.03277821,203.23,203.17,11.72456509]
[1756489705029,0.03277821,203.23,203.17,7.59355373]
[1756489705631,0.03277821,203.23,203.18,7.5]
[1756489705838,0.03277821,203.23,203.17,7.5]
[1756489710541,7.72,203.22,203.12,7.5]
[1756489718349,0.03277821,203.23,203.13,7.52]
[1756489718647,0.03277821,203.23,203.06,0.85656267]
[1756489718648,0.03277821,203.23,203.17,7.52]
[1756489719043,7.41,203.26,203.17,7.52]
[1756489719448,0.03156788,203.22,203.16,7.59355373]
[1756489719745,0.03156788,203.22,203.17,7.52]
[1756489720443,0.03156788,203.22,203.19,7.59355373]